bitfinex-derivatives/quotes_ETHF0:USTF0_20250430
["timestamp","ask_amount","ask_price","bid_price","bid_amount"]
[1746013565989,2.72847,1814.7,1814.6,4.49229]
[1746013566693,1.10181,1814.8,1814.7,1.10183]
[1746013566893,1.10183,1814.7,1814.6,2.78555]
[1746013567093,1.10183,1814.7,1814.6,3.266]
[1746013567693,1.10183,1814.7,1814.6,4.36789]
[1746013568389,1.10183,1814.7,1814.6,3.266]
[1746013568891,2.83073,1814.7,1814.6,0.8503]
[1746013569287,6.03853,1814.7,1814.6,0.8503]
[1746013569685,1.10189,1814.6,1814.5,3.828]
[1746013569891,3.61699,1814.6,1814.5,3.828]
[1746013573193,1.10201,1814.4,1814.3,1.91617]
[1746013573387,1.10201,1814.4,1814.3,0.8141]
[1746013573595,1.10201,1814.4,1814.3,1.91617]
[1746013573797,2.83651,1814.4,1814.3,1.91617]
[1746013574198,2.83651,1814.4,1814.3,5.74417]
[1746013574595,2.83651,1814.4,1814.3,4.6421]
[1746013575398,2.83651,1814.4,1814.3,3.828]
[1746013579194,1.10213,1814.2,1814.1,4.4071]
[1746013579394,1.10213,1814.2,1814.1,0.8071]
[1746013579596,3.55343,1814.2,1814.1,0.8071]
[1746013581202,3.55343,1814.2,1814.1,2.4334]
[1746013584404,1.10219,1814.1,1814.0,3.828]
[1746013584604,2.77879,1814.1,1814.0,3.828]
[1746013590003,2.77879,1814.1,1814.0,4.93026]
[1746013590309,1.89459,1814.2,1814.1,1.10219]
[1746013590497,1.10212,1814.3,1814.2,1.10207]
[1746013590695,1.10212,1814.3,1814.2,0.8516]
[1746013590905,2.70012,1814.3,1814.2,0.8516]
[1746013591307,2.70012,1814.3,1814.2,4.6796]
[1746013591613,5.90792,1814.3,1814.2,4.6796]
[1746013591800,2.70012,1814.3,1814.2,3.828]
[1746013592104,1.10226,1814.0,1813.9,1.6829]
[1746013592408,1.10226,1814.0,1813.9,2.7852]
[1746013592708,1.10226,1814.0,1813.9,4.4239]
[1746013593111,1.10226,1814.0,1813.9,8.2519]
[1746013593512,2.74916,1814.0,1813.9,8.2519]
[1746013594810,2.74916,1814.0,1813.9,7.1496]
[1746013597206,2.74916,1814.0,1813.9,3.828]
[1746013600108,1.10226,1814.0,1813.9,3.828]
[1746013600415,1.10226,1814.0,1813.9,4.93032]
[1746013602815,1.10226,1814.0,1813.9,3.828]
[1746013603313,1.10226,1814.0,1813.9,5.4849]
[1746013604517,1.10226,1814.0,1813.9,6.58722]
[1746013604714,1.10226,1814.0,1813.9,5.4849]
[1746013606018,1.10226,1814.0,1813.9,6.58722]
[1746013608017,1.10226,1814.0,1813.9,5.4849]
[1746013608521,2.72546,1814.0,1813.9,3.828]
[1746013608723,3.57296,1814.0,1813.9,3.828]
[1746013611026,1.1025,1813.6,1813.5,7.29323457]
[1746013611213,7.8943,1813.6,1813.5,7.56888455]
[1746013611417,12.8943,1813.6,1813.5,7.56888455]
[1746013611819,15.3999,1813.6,1813.5,0.27564998]
[1746013612322,10.8392674,1813.6,1813.5,0.27564998]
[1746013613125,10.8392674,1813.6,1813.5,4.10364998]
[1746013613318,7.2552674,1813.6,1813.5,4.10364998]
[1746013617131,7.2552674,1813.6,1813.5,0.27564998]
[1746013617332,1.10262,1813.4,1813.3,0.27564998]
[1746013617632,4.7497874,1813.4,1813.3,0.27564998]
[1746013618130,4.7497874,1813.4,1813.3,4.10364998]
[1746013619221,4.7497874,1813.4,1813.3,5.80304998]
[1746013619933,4.7497874,1813.4,1813.3,4.10364998]
[1746013620327,5.5758874,1813.4,1813.3,4.10364998]
[1746013620522,4.7497874,1813.4,1813.3,5.20632998]
[1746013621023,4.7497874,1813.4,1813.3,4.10364998]
[1746013621727,4.7497874,1813.4,1813.3,5.82014998]
[1746013623332,4.7497874,1813.4,1813.3,4.10364998]
[1746013632939,6.3282874,1813.4,1813.3,4.10364998]
[1746013636942,6.3282874,1813.4,1813.3,5.70724998]
[1746013637441,6.3282874,1813.4,1813.3,4.10364998]
[1746013639441,6.32833733,1813.4,1813.3,4.10364998]
[1746013644240,6.32833733,1813.4,1813.3,5.76664998]
[1746013644746,6.32833733,1813.4,1813.3,6.59564998]
[1746013650337,4.74983733,1813.4,1813.3,7.69832998]
[1746013650635,4.74983733,1813.4,1813.3,6.59564998]
[1746013652747,6.41713733,1813.4,1813.3,6.59564998]
[1746013655451,3.20933733,1813.4,1813.3,6.59564998]
[1746013660046,3.20933733,1813.4,1813.3,4.10364998]
[1746013660857,3.20933733,1813.4,1813.3,5.77714998]
[1746013662853,3.20933733,1813.4,1813.3,4.10364998]
[1746013663242,3.20933733,1813.4,1813.3,0.27564998]
[1746013664157,3.20933733,1813.4,1813.3,4.10364998]
[1746013665753,3.20933733,1813.4,1813.3,5.68724998]
[1746013670053,1.54203733,1813.4,1813.3,5.68724998]
[1746013672554,0.43941733,1813.4,1813.3,9.99772998]
[1746013673056,1.54203733,1813.4,1813.3,9.99772998]
[1746013674157,1.54203733,1813.4,1813.3,50.79772998]
[1746013675058,1.54203733,1813.4,1813.3,58.09096455]
[1746013676155,1.54203733,1813.4,1813.3,54.88316455]
[1746013676359,1.54203733,1813.4,1813.3,56.98828455]
[1746013676555,1.54203733,1813.4,1813.3,58.09096455]
[1746013676859,1.54203733,1813.4,1813.3,56.98828455]
[1746013677453,3.18023733,1813.4,1813.3,56.98828455]
[1746013678161,3.18023733,1813.4,1813.3,49.69504998]
[1746013679264,3.18023733,1813.4,1813.3,7.31144998]
[1746013679455,4.00393733,1813.4,1813.3,7.31144998]
[1746013680358,7.21173733,1813.4,1813.3,4.10364998]
[1746013682352,3.18023733,1813.4,1813.3,5.20632998]
[1746013682661,1.54203733,1813.4,1813.3,5.20632998]
[1746013683461,1.54203733,1813.4,1813.3,6.80182998]
[1746013684664,1.54203733,1813.4,1813.3,5.69914998]
[1746013684861,3.17763733,1813.4,1813.3,5.69914998]
[1746013685062,3.17763733,1813.4,1813.3,4.10364998]
[1746013685263,3.97563733,1813.4,1813.3,4.10364998]
[1746013685571,3.97563733,1813.4,1813.3,5.20632998]
[1746013686771,3.97563733,1813.4,1813.3,4.10364998]
[1746013688565,7.18343733,1813.4,1813.3,4.10364998]
[1746013688963,6.38543733,1813.4,1813.3,4.10364998]
[1746013690064,6.38543733,1813.4,1813.3,0.27564998]
[1746013691162,1.10268,1813.3,1813.2,0.27564998]
[1746013691357,2.69888,1813.3,1813.2,0.27564998]
[1746013691869,3.13829733,1813.3,1813.2,0.27564998]
[1746013692170,3.13829733,1813.3,1813.2,4.10364998]
[1746013693970,3.13829733,1813.3,1813.2,4.97664998]
[1746013695364,1.54209733,1813.3,1813.2,6.07938998]
[1746013695570,1.54209733,1813.3,1813.2,7.78208998]
[1746013696670,1.54209733,1813.3,1813.2,6.67934998]
[1746013696870,1.54209733,1813.3,1813.2,7.78208998]
[1746013701173,0.43941733,1813.3,1813.2,7.78208998]
[1746013701565,0.43941733,1813.3,1813.2,12.78208998]
[1746013701766,1.1026,1813.5,1813.4,1.10262]
[1746013702170,1.1026,1813.5,1813.4,5.80012]
[1746013703178,1.10254,1813.6,1813.5,1.10252]
[1746013703370,1.10254,1813.6,1813.5,3.70062]
[1746013704070,2.5332,1813.7,1813.5,3.70062]
[1746013704071,1.10247,1813.7,1813.6,1.1025]
[1746013704271,1.10247,1813.7,1813.6,2.8398]
[1746013706175,1.10247,1813.7,1813.6,43.6398]
[1746013708373,1.10247,1813.7,1813.6,43.91544998]
[1746013708580,1.10242,1813.8,1813.7,1.10244]
[1746013708777,1.10242,1813.8,1813.7,3.52744]
[1746013709168,1.10242,1813.8,1813.7,7.63108998]
[1746013709880,1.10242,1813.8,1813.7,6.52864998]
[1746013710284,1.10242,1813.8,1813.7,5.69184998]
[1746013710480,1.10242,1813.8,1813.7,4.10364998]
[1746013710882,4.31022,1813.8,1813.7,4.10364998]
[1746013715276,9.31022,1813.8,1813.7,3.66423265]
[1746013716184,4.31022,1813.8,1813.7,3.66423265]
[1746013717488,4.31022,1813.8,1813.7,3.38858267]
[1746013717878,4.31022,1813.8,1813.7,3.66423265]
[1746013718687,4.31022,1813.8,1813.7,2.21864267]
[1746013718893,12.88422,1813.8,1813.7,2.21864267]
[1746013719683,12.88422,1813.8,1813.7,2.49429265]
[1746013720186,7.88422,1813.8,1813.7,2.49429265]
[1746013720389,9.50042,1813.8,1813.7,2.49429265]
[1746013722695,9.50042,1813.8,1813.7,2.21864267]
[1746013723094,9.50042,1813.8,1813.7,0.84843267]
[1746013723293,9.50042,1813.8,1813.7,2.67e-06]
[1746013724390,1.1025,1813.6,1813.5,2.65e-06]
[1746013724598,4.3103,1813.6,1813.5,2.65e-06]
[1746013724990,1.10274,1813.2,1813.1,42.455]
[1746013725196,1.10274,1813.2,1813.1,41.6363]
[1746013725892,2.82454,1813.2,1813.1,0.8363]
[1746013727801,1.1028,1813.1,1813.0,3.828]
[1746013727996,1.1028,1813.1,1813.0,4.6771]
[1746013728194,1.1028,1813.1,1813.0,6.4164]
[1746013728390,1.1028,1813.1,1813.0,4.6771]
[1746013729003,1.1028,1813.1,1813.0,5.77996]
[1746013729303,1.1028,1813.1,1813.0,7.51926]
[1746013729601,1.1028,1813.1,1813.0,6.4164]
[1746013729802,1.1028,1813.1,1813.0,3.828]
[1746013730597,1.1028,1813.1,1813.0,5.4861]
[1746013735205,1.1028,1813.1,1813.0,3.828]
[1746013735404,1.1028,1813.1,1813.0,6.3149]
[1746013737511,1.1028,1813.1,1813.0,7.41776]
[1746013738313,1.1028,1813.1,1813.0,6.3149]
[1746013739609,4.31054,1813.3,1813.2,1.10274]
[1746013740103,4.31054,1813.3,1813.2,4.93074]
[1746013740406,4.31054,1813.3,1813.2,6.55204]
[1746013741097,1.10274,1813.3,1813.2,6.55204]
[1746013741910,1.10274,1813.3,1813.2,5.4493]
[1746013742207,1.10274,1813.3,1813.2,6.55204]
[1746013745812,1.10274,1813.3,1813.2,5.4493]
[1746013746615,1.10274,1813.3,1813.2,6.55204]
[1746013747412,1.10274,1813.3,1813.2,5.4493]
[1746013747609,1.10274,1813.3,1813.2,6.55204]
[1746013748614,1.10274,1813.3,1813.2,5.4493]
[1746013748807,1.10274,1813.3,1813.2,6.55204]
[1746013751214,1.10256,1813.5,1813.4,1.10262]
[1746013751415,1.10262,1813.4,1813.3,3.52566]
[1746013752112,1.10261,1813.5,1813.4,1.10258]
[1746013752316,2.77591,1813.5,1813.4,2.71868]
[1746013753119,2.77591,1813.5,1813.4,6.54668]
[1746013753920,2.77591,1813.5,1813.4,3.828]
[1746013754112,2.77591,1813.5,1813.4,4.93062]
[1746013754717,2.77591,1813.5,1813.4,6.59642]
[1746013755117,2.77591,1813.5,1813.4,5.4938]
[1746013755317,2.77591,1813.5,1813.4,3.828]
[1746013755522,3.61831,1813.5,1813.4,3.828]
[1746013770639,6.82611,1813.5,1813.4,3.828]
[1746013771741,11.82611,1813.5,1813.4,0.8231]
[1746013772039,1.10286,1813.0,1812.9,9.25263732]
[1746013772737,2.75692,1813.2,1812.9,9.25263732]
[1746013772935,1.10284,1813.1,1813.0,1.1028]
[1746013773135,1.52854897,1813.1,1813.0,4.9308]
[1746013773432,1.10284,1813.1,1813.0,4.9308]
[1746013773740,1.52852799,1813.1,1813.0,4.9308]
[1746013774340,1.10284,1813.1,1813.0,4.9308]
[1746013774643,1.52851757,1813.1,1813.0,4.9308]
[1746013774842,1.10284,1813.1,1813.0,4.9308]
[1746013775043,1.52850048,1813.1,1813.0,4.9308]
[1746013775343,1.10284,1813.1,1813.0,4.9308]
[1746013775741,1.52847995,1813.1,1813.0,4.9308]
[1746013776242,1.10284,1813.1,1813.0,4.9308]
[1746013777942,1.52848011,1813.1,1813.0,4.9308]
[1746013778943,1.52842444,1813.1,1813.0,4.9308]
[1746013779443,1.52842444,1813.1,1813.0,3.828]
[1746013779639,3.24692444,1813.1,1813.0,4.93086]
[1746013780745,1.52842444,1813.1,1813.0,4.93086]
[1746013780940,0.42546731,1813.1,1813.0,4.93086]
[1746013781146,1.1026,1813.5,1813.4,1.10258]
[1746013781547,1.10255,1813.6,1813.5,1.10253]
[1746013781744,1.10256,1813.5,1813.4,1.93517]
[1746013782051,1.10254,1813.6,1813.5,1.10253]
[1746013782241,1.10254,1813.6,1813.5,4.93053]
[1746013782736,1.10254,1813.6,1813.5,3.828]
[1746013784748,1.10254,1813.6,1813.5,4.93056]
[1746013785649,1.10254,1813.6,1813.5,3.828]
[1746013785946,1.10254,1813.6,1813.5,4.93056]
[1746013786249,1.10254,1813.6,1813.5,3.828]
[1746013788647,4.40284,1813.6,1813.5,3.828]
[1746013793055,4.82156729,1813.6,1813.5,3.828]
[1746013795843,4.82159727,1813.6,1813.5,3.828]
[1746013799758,4.82166181,1813.6,1813.5,3.828]
[1746013801160,4.8216432,1813.6,1813.5,3.828]
[1746013801960,4.0317432,1813.6,1813.5,3.828]
[1746013802148,4.0317432,1813.6,1813.5,4.6994]
[1746013802758,4.03187574,1813.6,1813.5,4.6994]
[1746013803260,4.03187574,1813.6,1813.5,3.828]
[1746013803961,4.03187574,1813.6,1813.5,4.93056]
[1746013804162,4.03187574,1813.6,1813.5,6.50476]
[1746013804658,4.03187398,1813.6,1813.5,6.50476]
[1746013806456,3.61294,1813.6,1813.5,6.50476]
[1746013806663,4.03189805,1813.6,1813.5,5.4022]
[1746013807763,1.52149805,1813.6,1813.5,5.4022]
[1746013807963,1.52149805,1813.6,1813.5,6.50476]
[1746013808458,1.52159371,1813.6,1813.5,6.50476]
[1746013810267,1.52172991,1813.6,1813.5,6.50476]
[1746013810457,1.10254,1813.6,1813.5,6.50476]
[1746013810657,1.52189758,1813.6,1813.5,6.50476]
[1746013811468,1.10254,1813.6,1813.5,5.4022]
[1746013811665,1.10254,1813.6,1813.5,6.50476]
[1746013812070,1.52185411,1813.6,1813.5,6.50476]
[1746013812261,0.41930326,1813.6,1813.5,6.50476]
[1746013812565,1.52180326,1813.6,1813.5,6.50476]
[1746013812771,0.41930326,1813.6,1813.5,6.50476]
[1746013812964,1.10243,1813.8,1813.7,1.10241]
[1746013813163,1.52163259,1813.8,1813.7,1.10241]
[1746013813667,1.52163259,1813.8,1813.7,3.58971]
[1746013814169,1.52152841,1813.8,1813.7,7.41771]
[1746013814369,1.52151071,1813.8,1813.7,7.41771]
[1746013814869,1.52142587,1813.8,1813.7,7.41771]
[1746013817970,1.52142587,1813.8,1813.7,6.3153]
[1746013819768,1.52113216,1813.8,1813.7,6.3153]
[1746013821071,3.18323216,1813.8,1813.7,6.3153]
[1746013821270,3.18323216,1813.8,1813.7,5.5012]
[1746013821776,3.18325171,1813.8,1813.7,3.828]
[1746013823385,3.18325284,1813.8,1813.7,3.828]
[1746013824085,3.18325284,1813.8,1813.7,5.4765]
[1746013827188,3.18327311,1813.8,1813.7,5.4765]
[1746013828893,3.18327311,1813.8,1813.7,6.57894]
[1746013829186,3.18333675,1813.8,1813.7,5.4765]
[1746013830189,3.18333675,1813.8,1813.7,6.57894]
[1746013830389,3.18333675,1813.8,1813.7,5.4765]
[1746013830984,3.18338572,1813.8,1813.7,5.4765]
[1746013838097,2.76453,1813.8,1813.7,5.4765]
[1746013839896,3.18394205,1813.8,1813.7,6.57894]
[1746013840097,2.76453,1813.8,1813.7,6.57894]
[1746013840497,3.18393217,1813.8,1813.7,6.57894]
[1746013840797,2.76453,1813.8,1813.7,5.4765]
[1746013840997,3.18402897,1813.8,1813.7,6.57894]
[1746013841297,3.18402729,1813.8,1813.7,6.57894]
[1746013843699,3.18404818,1813.8,1813.7,6.57894]
[1746013844399,3.18404818,1813.8,1813.7,5.4765]
[1746013845501,3.18404818,1813.8,1813.7,6.57894]
[1746013845794,1.52194818,1813.8,1813.7,6.57894]
[1746013847599,1.52189416,1813.8,1813.7,6.57894]
[1746013849198,0.41946416,1813.8,1813.7,6.57894]
[1746013849389,1.52177036,1813.8,1813.7,6.57894]
[1746013853102,1.52169887,1813.8,1813.7,6.57894]
[1746013855006,1.52171848,1813.8,1813.7,6.57894]
[1746013858202,0.41933848,1813.8,1813.7,6.57894]
[1746013858809,2.72343,1813.9,1813.8,1.10238]
[1746013859009,3.1427325,1813.9,1813.8,3.59348]
[1746013859308,3.1427325,1813.9,1813.8,7.42148]
[1746013860613,2.04036944,1813.9,1813.8,7.42148]
[1746013860807,1.52158944,1813.9,1813.8,7.42148]
[1746013861008,0.41926944,1813.9,1813.8,7.42148]
[1746013863911,2.7199,1814.0,1813.9,1.10232]
[1746013864209,3.13902389,1814.0,1813.9,2.81662]
[1746013865107,3.13902389,1814.0,1813.9,6.64462]
[1746013865712,3.13898299,1814.0,1813.9,6.64462]
[1746013865903,0.41908299,1814.0,1813.9,11.64462]
[1746013866107,1.10212,1814.3,1814.0,2.75555]
[1746013866309,0.41902701,1814.2,1814.1,2.82289]
[1746013866515,0.41902701,1814.2,1814.1,45.33719]
[1746013867411,1.52115701,1814.2,1814.1,45.33719]
[1746013867613,3.22365447,1814.2,1814.1,45.33719]
[1746013868107,0.41882447,1814.2,1814.1,50.33719]
[1746013868310,1.10213,1814.2,1814.1,44.235]
[1746013868508,1.52071818,1814.2,1814.1,45.33718]
[1746013869113,3.22341818,1814.2,1814.1,45.33718]
[1746013869421,3.22338487,1814.2,1814.1,45.33718]
[1746013869715,1.7027,1814.2,1814.1,45.33718]
[1746013870215,2.1212531,1814.2,1814.1,45.33718]
[1746013870415,3.2233831,1814.2,1814.1,45.33718]
[1746013871318,2.80483,1814.2,1814.1,45.33718]
[1746013872619,1.7027,1814.2,1814.1,45.33718]
[1746013879930,2.80483,1814.2,1814.1,45.33718]
[1746013882132,1.7027,1814.2,1814.1,45.33718]
[1746013884133,2.80483,1814.2,1814.1,45.33718]
[1746013884329,3.22337101,1814.2,1814.1,45.33718]
[1746013884732,2.80483,1814.2,1814.1,44.235]
[1746013884925,4.02206466,1814.2,1814.1,44.235]
[1746013885436,4.02212775,1814.2,1814.1,44.235]
[1746013885631,2.91999775,1814.2,1814.1,45.33719]
[1746013885832,2.5014,1814.2,1814.1,45.33719]
[1746013886436,2.92005838,1814.2,1814.1,45.33719]
[1746013890640,2.5014,1814.2,1814.1,45.33719]
[1746013891843,4.022534,1814.2,1814.1,45.33719]
[1746013892031,1.10219,1814.1,1814.0,3.828]
[1746013892237,5.600694,1814.1,1814.0,3.828]
[1746013892435,7.271594,1814.1,1814.0,3.828]
[1746013892840,4.063794,1814.1,1814.0,3.828]
[1746013893345,4.063794,1814.1,1814.0,4.93026]
[1746013894044,4.06382943,1814.1,1814.0,4.93026]
[1746013895842,4.06385762,1814.1,1814.0,4.93026]
[1746013897647,4.06380435,1814.1,1814.0,4.93026]
[1746013901447,4.06374108,1814.1,1814.0,4.93026]
[1746013901648,4.06374192,1814.1,1814.0,4.93026]
[1746013903551,4.06372296,1814.1,1814.0,4.93026]
[1746013904251,4.06373254,1814.1,1814.0,4.93026]
[1746013904550,2.96154254,1814.1,1814.0,4.93026]
[1746013904748,2.08984254,1814.1,1814.0,4.93026]
[1746013905048,1.6709,1814.1,1814.0,6.64636]
[1746013905249,3.19199073,1814.1,1814.0,6.64636]
[1746013906147,1.52109073,1814.1,1814.0,6.64636]
[1746013907353,2.00650073,1814.1,1814.0,6.64636]
[1746013908049,3.10869073,1814.1,1814.0,47.44636]
[1746013909155,3.10877196,1814.1,1814.0,45.73026]
[1746013909851,3.10878016,1814.1,1814.0,45.73026]
[1746013911157,3.10877802,1814.1,1814.0,45.73026]
[1746013912958,3.10880666,1814.1,1814.0,45.73026]
[1746013914057,6.31660666,1814.1,1814.0,3.828]
[1746013914259,3.10880666,1814.1,1814.0,4.93026]
[1746013916358,2.00661666,1814.1,1814.0,4.93026]
[1746013916554,2.00661666,1814.1,1814.0,8.20036]
[1746013916755,2.00662319,1814.1,1814.0,8.20036]
[1746013918671,2.0066919,1814.1,1814.0,8.20036]
[1746013919676,3.2078,1814.3,1814.2,1.10213]
[1746013919975,6.39826657,1814.3,1814.2,1.10213]
[1746013920167,6.39826657,1814.3,1814.2,4.93013]
[1746013920364,6.39826657,1814.3,1814.2,5.77333]
[1746013920565,3.19049873,1814.3,1814.2,5.77333]
[1746013921775,3.19061157,1814.3,1814.2,5.77333]
[1746013922969,5.862,1815.2,1814.3,2.75519]
[1746013923171,1.6201,1814.9,1814.8,1.10172]
[1746013923376,0.7893,1815.0,1814.9,1.10171]
[1746013923578,0.7893,1815.2,1815.1,1.10159]
[1746013923870,0.7893,1815.2,1815.1,7.86539]
[1746013924078,1.6201,1815.3,1815.2,1.10153]
[1746013924278,1.6201,1815.3,1815.2,4.38993]
[1746013924475,16.57675218,1815.5,1815.4,1.10141]
[1746013924775,16.57675218,1815.5,1815.4,3.556]
[1746013924976,16.57675218,1815.5,1815.4,4.65741]
[1746013925170,16.57675218,1815.5,1815.4,10.18481]
[1746013926377,1.6584,1815.6,1815.4,10.18481]
[1746013926576,1.6584,1815.6,1815.5,4.30914]
[1746013926874,2.75968,1815.6,1815.5,3.2078]
[1746013927076,1.6584,1815.6,1815.5,7.0358]
[1746013927382,1.6584,1815.6,1815.5,8.13714]
[1746013927678,1.6584,1815.6,1815.5,9.83654]
[1746013928480,1.6584,1815.6,1815.5,8.7352]
[1746013928680,2.75968,1815.6,1815.5,8.7352]
[1746013930077,1.6584,1815.6,1815.5,9.83654]
[1746013930882,2.75968,1815.6,1815.5,8.7352]
[1746013931273,1.10125,1815.7,1815.5,9.83654]
[1746013931478,2.74115,1815.7,1815.6,2.70908]
[1746013931775,2.74115,1815.7,1815.6,1.6078]
[1746013932384,1.10128,1815.6,1815.5,7.0358]
[1746013932574,2.74118,1815.6,1815.5,7.0358]
[1746013933283,2.74118,1815.6,1815.5,8.13714]
[1746013933585,2.74118,1815.6,1815.5,7.0358]
[1746013933985,2.74118,1815.6,1815.5,8.13714]
[1746013934285,2.74118,1815.6,1815.5,9.71554]
[1746013934889,0.859,1815.8,1815.6,1.10123]
[1746013935075,1.10122,1815.7,1815.6,2.3694]
[1746013935279,1.10122,1815.7,1815.6,1.5784]
[1746013935481,1.10128,1815.6,1815.5,8.1371]
[1746013935979,1.10128,1815.6,1815.5,7.0358]
[1746013936386,1.10128,1815.6,1815.5,8.13714]
[1746013936787,1.10128,1815.6,1815.5,7.0358]
[1746013937489,1.10128,1815.6,1815.5,8.13714]
[1746013937890,1.10128,1815.6,1815.5,7.0358]
[1746013940392,1.10128,1815.6,1815.5,3.828]
[1746013940797,1.10128,1815.6,1815.5,8.13714]
[1746013942500,2.69546,1815.7,1815.6,1.10128]
[1746013942992,2.69546,1815.7,1815.6,2.5518]
[1746013943796,2.69546,1815.7,1815.6,3.65308]
[1746013945497,1.10126,1815.7,1815.6,3.65308]
[1746013945987,3.61401,1816.0,1815.6,2.5518]
[1746013946188,1.95705,1816.0,1815.8,3.2078]
[1746013946487,1.10102,1816.1,1816.0,1.10103]
[1746013946796,1.10102,1816.1,1816.0,4.30884]
[1746013946992,1.10098,1816.1,1816.0,6.01784]
[1746013947198,1.10098,1816.1,1816.0,9.84584]
[1746013947791,1.10098,1816.1,1816.0,9.84578]
[1746013948096,1.10098,1816.1,1816.0,50.64578]
[1746013948996,1.7219,1816.1,1816.0,50.64578]
[1746013949302,1.10089,1816.3,1816.2,1.10092]
[1746013949492,2.82279,1816.3,1816.2,4.30872]
[1746013949692,2.82279,1816.3,1816.2,3.2078]
[1746013949892,2.82279,1816.3,1816.2,3.9997]
[1746013950298,2.82279,1816.3,1816.2,7.8277]
[1746013950800,2.82279,1816.3,1816.2,7.0358]
[1746013951001,2.82279,1816.3,1816.2,3.828]
[1746013956904,11.03059,1816.3,1816.2,3.40253269]
[1746013957098,1.1011,1815.9,1815.8,4.30894]
[1746013957305,1.1011,1815.9,1815.8,46.81964]
[1746013958108,1.1011,1815.9,1815.8,50.64764]
[1746013958305,2.6871,1815.9,1815.8,50.64764]
[1746013959304,2.6871,1815.9,1815.8,50.64766]
[1746013960007,2.6871,1815.9,1815.8,49.5465]
[1746013960309,2.6871,1815.9,1815.8,50.64766]
[1746013960909,2.6871,1815.9,1815.8,49.5465]
[1746013962712,2.6871,1815.9,1815.8,47.8358]
[1746013963306,2.6871,1815.9,1815.8,3.828]
[1746013967415,2.6871,1815.9,1815.8,4.92916]
[1746013967615,2.6871,1815.9,1815.8,3.828]
[1746013971119,2.6871,1815.9,1815.8,4.92916]
[1746013971419,1.586,1815.9,1815.8,6.56416]
[1746013971821,0.8503,1816.0,1815.8,6.56416]
[1746013972017,1.1011,1815.9,1815.8,8.13696]
[1746013972321,1.1011,1815.9,1815.8,8.13691]
[1746013973222,1.1011,1815.9,1815.8,7.0358]
[1746013973427,1.1011,1815.9,1815.8,3.828]
[1746013973830,2.8192,1815.9,1815.8,3.828]
[1746013975028,2.82437449,1815.9,1815.8,3.828]
[1746013977522,2.82437449,1815.9,1815.8,4.92916]
[1746013977923,2.82437449,1815.9,1815.8,3.828]
[1746013978429,2.82437449,1815.9,1815.8,4.92916]
[1746013979123,2.82437449,1815.9,1815.8,7.0358]
[1746013980331,2.82437449,1815.9,1815.8,8.13696]
[1746013981134,2.82437449,1815.9,1815.8,7.0358]
[1746013982529,2.82437449,1815.9,1815.8,3.828]
[1746013982732,1.10627449,1815.9,1815.8,7.0358]
[1746013982931,1.10627449,1815.9,1815.8,8.13696]
[1746013983331,0.00517449,1815.9,1815.8,8.13696]
[1746013983532,1.10627449,1815.9,1815.8,8.13696]
[1746013983732,1.10627449,1815.9,1815.8,7.0358]
[1746013984130,1.10627449,1815.9,1815.8,3.828]
[1746013984328,1.93757449,1815.9,1815.8,3.828]
[1746013984529,3.51297449,1815.9,1815.8,3.828]
[1746013990526,8.51297449,1815.9,1815.8,3.828]
[1746013990730,3.51297449,1815.9,1815.8,3.828]
[1746013991739,3.51297449,1815.9,1815.8,6.50726]
[1746013992229,3.51297449,1815.9,1815.8,5.4061]
[1746013992428,3.51297449,1815.9,1815.8,6.50726]
[1746013992635,3.51297449,1815.9,1815.8,5.4061]
[1746013994943,3.51297449,1815.9,1815.8,8.6139]
[1746013997643,3.51297449,1815.9,1815.8,9.4683]
[1746013999640,3.51297449,1815.9,1815.8,6.2605]
[1746013999851,2.68167449,1815.9,1815.8,9.4683]
[1746014000145,2.68167449,1815.9,1815.8,6.2605]
[1746014000846,0.00517449,1815.9,1815.8,8.13696]
[1746014001046,1.10627449,1815.9,1815.8,9.5067]
[1746014002046,1.10627449,1815.9,1815.8,7.0358]
[1746014002437,0.00517449,1815.9,1815.8,8.13696]
[1746014002641,0.00517449,1815.9,1815.8,9.78056]
[1746014003748,1.10102,1816.1,1815.9,1.10106]
[1746014003942,1.10102,1816.1,1816.0,4.8867]
[1746014004143,2.73547,1816.2,1816.0,9.81574]
[1746014004343,2.73547,1816.2,1816.1,1.6681]
[1746014005748,1.6345,1816.2,1816.1,2.76908]
[1746014005950,2.73542,1816.2,1816.1,2.76908]
[1746014006650,2.73542,1816.2,1816.1,1.6681]
[1746014007044,1.10098,1816.1,1816.0,8.7147]
[1746014007245,3.52978,1816.1,1816.0,8.7147]
[1746014007446,3.52978,1816.1,1816.0,9.81574]
[1746014008450,3.52978,1816.1,1816.0,8.7147]
[1746014008852,3.52978,1816.1,1816.0,9.81574]
[1746014009753,3.52978,1816.1,1816.0,11.44074]
[1746014010652,2.4288,1816.1,1816.0,11.44074]
[1746014011351,1.10091,1816.3,1816.1,1.10093]
[1746014011547,2.75969,1816.3,1816.1,1.6641]
[1746014011749,1.10098,1816.1,1816.0,4.6863]
[1746014012051,1.10098,1816.1,1816.0,3.828]
[1746014012254,1.1011,1815.9,1815.8,7.30096236]
[1746014012853,3.5648,1815.9,1815.8,7.30096236]
[1746014013053,3.5648,1815.9,1815.7,12.10494598]
[1746014013054,1.10116,1815.8,1815.7,1.10122]
[1746014013251,2.68866,1815.8,1815.6,53.79756236]
[1746014013453,1.94232,1815.7,1815.6,52.13346236]
[1746014013651,3.52982,1815.7,1815.6,7.30096236]
[1746014015954,1.10128,1815.6,1815.5,49.76181]
[1746014016156,2.68878,1815.6,1815.5,7.8605]
[1746014017054,2.68878,1815.6,1815.5,7.0358]
[1746014017261,3.55148,1815.6,1815.5,7.0358]
[1746014017960,2.68878,1815.6,1815.5,7.0358]
[1746014018164,2.68878,1815.6,1815.5,7.8848]
[1746014019266,2.68878,1815.6,1815.5,7.0358]